bitfinex-derivatives/quotes_BTCF0:USTF0_20241010
["timestamp","ask_amount","ask_price","bid_price","bid_amount"]
[1728544519625,0.14470418,61174.0,61173.0,1.18622508]
[1728544520920,0.14470418,61174.0,61173.0,1.08838583]
[1728544521129,0.14470418,61174.0,61173.0,0.76838583]
[1728544521328,0.14470418,61174.0,61173.0,0.86622357]
[1728544521329,0.12,61174.0,61173.0,0.86622357]
[1728544521528,0.12,61174.0,61173.0,0.89180139]
[1728544522428,0.12,61174.0,61173.0,0.79396214]
[1728544523631,0.68005604,61176.0,61175.0,0.08181]
[1728544523834,0.77909603,61176.0,61175.0,0.31418132]
[1728544525632,0.77909603,61176.0,61175.0,0.31518132]
[1728544526035,0.77909603,61176.0,61175.0,0.22938782]
[1728544527932,0.77909603,61176.0,61175.0,0.20381]
[1728544528327,0.77909603,61176.0,61175.0,0.22938763]
[1728544529225,0.77909603,61176.0,61175.0,0.10938763]
[1728544529426,0.77909603,61176.0,61175.0,0.08381]
[1728544532433,0.77909603,61176.0,61175.0,0.10938846]
[1728544532628,0.77909603,61176.0,61175.0,0.08381]
[1728544532939,0.77909603,61176.0,61175.0,0.17053814]
[1728544534431,0.77909603,61176.0,61175.0,0.53133814]
[1728544540250,0.86090503,61176.0,61175.0,0.53133814]
[1728544540543,0.86090503,61176.0,61175.0,0.53106474]
[1728544540740,0.89300503,61176.0,61175.0,0.3628]
[1728544540933,0.89300503,61176.0,61175.0,0.42803716]
[1728544541136,0.89300503,61176.0,61175.0,0.3628]
[1728544547245,1.01300503,61176.0,61175.0,0.3628]
[1728544548448,1.01300503,61176.0,61175.0,0.42803925]
[1728544554559,1.01300503,61176.0,61175.0,0.06723925]
[1728544561962,1.01300503,61176.0,61175.0,0.14904925]
[1728544561963,0.86090503,61176.0,61175.0,0.14904925]
[1728544562155,0.98090503,61176.0,61175.0,0.14904925]
[1728544563057,0.98090503,61176.0,61175.0,0.08381]
[1728544563260,0.98090503,61176.0,61175.0,0.002]
[1728544566466,0.98090503,61176.0,61175.0,0.05093663]
[1728544567156,0.86090503,61176.0,61175.0,0.05093663]
[1728544567358,0.86090503,61176.0,61175.0,0.002]
[1728544567359,0.98090503,61176.0,61175.0,0.002]
[1728544567563,0.98090503,61176.0,61175.0,0.05093663]
[1728544569469,0.98090503,61176.0,61175.0,0.002]
[1728544571368,0.98090503,61176.0,61175.0,0.17063688]
[1728544573765,0.98090503,61176.0,61175.0,0.17063594]
[1728544575974,0.98090503,61176.0,61175.0,0.0835366]
[1728544576172,0.081813,61173.0,61170.0,0.0815366]
[1728544576367,0.201815,61171.0,61170.0,0.0815366]
[1728544576570,0.321815,61171.0,61170.0,0.0815366]
[1728544577172,0.081817,61170.0,61169.0,0.0815366]
[1728544577372,0.321817,61170.0,61169.0,0.0815366]
[1728544577976,0.24,61170.0,61167.0,0.0815366]
[1728544578276,0.201819,61168.0,61166.0,0.3608]
[1728544578579,0.081821,61167.0,61166.0,0.3608]
[1728544578772,0.234821,61167.0,61166.0,0.3608]
[1728544579974,0.234821,61167.0,61166.0,0.442622]
[1728544580183,0.234821,61167.0,61166.0,0.443622]
[1728544580573,0.234821,61167.0,61166.0,0.444622]
[1728544581375,0.234821,61167.0,61166.0,0.50988944]
[1728544581574,0.234821,61167.0,61166.0,0.444622]
[1728544581776,0.234821,61167.0,61166.0,0.50989223]
[1728544581965,0.234821,61167.0,61166.0,0.444622]
[1728544582171,0.234821,61167.0,61166.0,0.50988909]
[1728544584073,0.25962723,61167.0,61166.0,0.50988909]
[1728544585274,0.25962723,61167.0,61166.0,0.42806709]
[1728544585474,0.25962723,61167.0,61166.0,0.002]
[1728544585872,0.25962723,61167.0,61160.0,0.04894305]
[1728544585873,0.081829,61161.0,61160.0,0.04894305]
[1728544586065,0.081829,61161.0,61159.0,0.00245251]
[1728544586066,0.301829,61161.0,61159.0,0.05139556]
[1728544586271,0.08183,61160.0,61159.0,0.0677196]
[1728544586472,0.19183,61160.0,61159.0,0.00245251]
[1728544586777,0.19183,61160.0,61159.0,0.0677196]
[1728544586981,0.19183,61160.0,61159.0,0.00245251]
[1728544587177,0.19183,61160.0,61159.0,0.05138051]
[1728544588176,0.19183,61160.0,61159.0,0.00245251]
[1728544588678,0.19183,61160.0,61159.0,0.00945251]
[1728544589380,0.19183,61160.0,61159.0,0.005]
[1728544591172,0.21609758,61160.0,61159.0,0.005]
[1728544593577,0.24929758,61160.0,61159.0,0.005]
[1728544594583,0.61009758,61160.0,61159.0,0.005]
[1728544594878,0.08184,61153.0,61150.0,0.13072493]
[1728544595073,0.12,61151.0,61150.0,0.081843]
[1728544595278,0.24,61151.0,61150.0,0.081843]
[1728544596383,0.24,61151.0,61150.0,0.088843]
[1728544597985,0.24,61151.0,61150.0,0.090843]
[1728544598491,0.321842,61151.0,61150.0,0.090843]
[1728544598879,0.321842,61151.0,61150.0,0.009]
[1728544600291,0.12,61151.0,61150.0,0.210843]
[1728544600682,0.24,61151.0,61150.0,0.122843]
[1728544600886,0.26498326,61151.0,61150.0,0.122843]
[1728544603083,0.26498326,61151.0,61150.0,0.17172493]
[1728544604391,0.26498326,61151.0,61150.0,0.53252493]
[1728544604997,0.26498326,61151.0,61150.0,0.483643]
[1728544605184,0.26498326,61151.0,61150.0,0.54891009]
[1728544607190,0.26498326,61151.0,61150.0,0.483643]
[1728544607898,0.34682526,61151.0,61150.0,0.483643]
[1728544609402,0.26498326,61151.0,61150.0,0.483643]
[1728544612182,0.26498326,61151.0,61150.0,0.56525842]
[1728544612587,0.26498326,61151.0,61150.0,0.483643]
[1728544613188,0.26498326,61151.0,61150.0,0.65307032]
[1728544614094,0.26498326,61151.0,61150.0,0.5714549]
[1728544615691,0.34682526,61151.0,61150.0,0.5714549]
[1728544616503,0.34682526,61151.0,61150.0,0.57154776]
[1728544616698,0.34682526,61151.0,61150.0,0.53954776]
[1728544616899,0.34682526,61151.0,61150.0,0.3698]
[1728544618004,0.34682526,61151.0,61150.0,0.451643]
[1728544623599,0.34682526,61151.0,61150.0,0.53957525]
[1728544626602,0.34682526,61151.0,61150.0,0.17877525]
[1728544626811,0.34682526,61151.0,61150.0,0.53957525]
[1728544628902,0.34682526,61151.0,61150.0,0.53954786]
[1728544629505,0.34682526,61151.0,61150.0,0.5395465]
[1728544629903,0.34682526,61151.0,61150.0,0.4577035]
[1728544630109,0.34682526,61151.0,61150.0,0.53938848]
[1728544630306,0.34682526,61151.0,61150.0,0.3698]
[1728544630506,0.34682526,61151.0,61150.0,0.43514969]
[1728544631409,0.34682526,61151.0,61150.0,0.07434969]
[1728544631812,0.62578326,61151.0,61144.0,0.08168498]
[1728544632007,0.12,61145.0,61142.0,0.0841382]
[1728544632318,0.081853,61143.0,61142.0,0.00245322]
[1728544632513,0.191853,61143.0,61142.0,0.00245322]
[1728544633311,0.081854,61142.0,61141.0,0.3608]
[1728544633524,0.311854,61142.0,61141.0,0.3608]
[1728544633716,0.311854,61142.0,61135.0,0.081863]
[1728544633717,0.081858,61139.0,61135.0,0.081863]
[1728544633903,0.12,61137.0,61135.0,0.081863]
[1728544634107,0.23,61137.0,61135.0,0.081863]
[1728544634412,0.23,61137.0,61129.0,0.00245367]
[1728544634413,0.23,61137.0,61136.0,0.081862]
[1728544635219,0.231,61137.0,61136.0,0.081862]
[1728544635607,0.312861,61137.0,61136.0,0.081862]
[1728544635805,0.312861,61137.0,61136.0,0.090862]
[1728544636211,0.312861,61137.0,61136.0,0.104862]
[1728544636415,0.192861,61137.0,61136.0,0.104862]
[1728544636713,0.231,61137.0,61136.0,0.104862]
[1728544636914,0.111,61137.0,61136.0,0.104862]
[1728544637115,0.111,61137.0,61136.0,0.138062]
[1728544639110,0.111,61137.0,61136.0,0.24534166]
[1728544639319,0.0114,61141.0,61140.0,0.081857]
[1728544639616,0.02402386,61143.0,61140.0,0.47374539]
[1728544639813,0.11,61143.0,61142.0,0.12]
[1728544640008,0.11,61143.0,61142.0,0.20153865]
[1728544640318,0.11,61143.0,61142.0,0.12]
[1728544640519,0.11,61143.0,61142.0,0.28870735]
[1728544640818,0.11,61143.0,61142.0,0.23276089]
[1728544641031,0.11,61143.0,61142.0,0.31461489]
[1728544641220,0.111,61143.0,61142.0,0.31461489]
[1728544642220,0.111,61143.0,61142.0,0.32861489]
[1728544642415,0.111,61143.0,61142.0,0.34261489]
[1728544643314,0.111,61143.0,61142.0,0.34250281]
[1728544644517,0.111,61143.0,61142.0,0.44034206]
[1728544645710,0.111,61143.0,61142.0,0.34250161]
[1728544646712,0.001,61143.0,61142.0,0.34250161]
[1728544648618,0.001,61143.0,61142.0,0.70330161]
[1728544648818,0.001,61143.0,61142.0,0.80696017]
[1728544650728,0.111,61143.0,61142.0,0.80696017]
[1728544652827,0.111,61143.0,61142.0,0.80679024]
[1728544653828,0.111,61143.0,61142.0,0.78119925]
[1728544654213,0.111,61143.0,61142.0,0.66119925]
[1728544654426,0.111,61143.0,61142.0,0.6867892]
[1728544655329,0.111,61143.0,61142.0,0.66119925]
[1728544657122,0.111,61143.0,61142.0,1.02199925]
[1728544658833,0.111,61143.0,61142.0,0.9183831]
[1728544659422,0.111,61143.0,61142.0,1.0219175]
[1728544659623,0.111,61143.0,61142.0,0.9183831]
[1728544660125,0.111,61143.0,61142.0,0.1967831]
[1728544660431,0.111,61143.0,61142.0,0.9183831]
[1728544660828,0.111,61143.0,61142.0,1.02190685]
[1728544661930,0.111,61143.0,61142.0,0.30030685]
[1728544662127,0.111,61143.0,61142.0,1.02190685]
[1728544662329,0.111,61143.0,61142.0,1.02182699]
[1728544664929,0.111,61143.0,61142.0,0.30022699]
[1728544665225,0.111,61143.0,61142.0,1.02182699]
[1728544665430,0.231,61143.0,61142.0,1.02201723]
[1728544665634,0.231,61143.0,61142.0,0.47565051]
[1728544665635,0.312853,61143.0,61142.0,0.47565051]
[1728544665834,0.345353,61143.0,61142.0,0.57357351]
[1728544666136,0.345353,61143.0,61142.0,0.11485051]
[1728544666325,0.345353,61143.0,61142.0,0.19645907]
[1728544666526,0.345353,61143.0,61142.0,0.11485051]
[1728544667034,0.345353,61143.0,61142.0,0.11523321]
[1728544667231,0.345353,61143.0,61142.0,0.19688077]
[1728544667437,0.345353,61143.0,61142.0,0.11523321]
[1728544668332,0.345353,61143.0,61142.0,0.19689714]
[1728544668537,0.345353,61143.0,61142.0,0.11523321]
[1728544670531,0.345353,61143.0,61142.0,0.19690613]
[1728544670740,0.377253,61143.0,61142.0,0.19690613]
[1728544670931,0.377253,61143.0,61142.0,0.10967292]
[1728544671530,0.377253,61143.0,61142.0,0.028]
[1728544676229,0.377253,61143.0,61142.0,0.3888]
[1728544678131,0.377253,61143.0,61142.0,0.028]
[1728544678337,0.738053,61143.0,61142.0,0.028]
[1728544680237,1.338053,61143.0,61142.0,0.028]
[1728544680441,0.081854,61142.0,61132.0,0.08167292]
[1728544680647,0.201866,61133.0,61132.0,0.08167292]
[1728544680943,0.321866,61133.0,61132.0,0.16932925]
[1728544681438,0.321866,61133.0,61130.0,0.44267]
[1728544681439,0.24,61133.0,61131.0,0.08167292]
[1728544681634,0.145167,61132.0,61130.0,0.52434292]
[1728544681833,0.255167,61132.0,61130.0,0.52434292]
[1728544682342,0.255167,61132.0,61131.0,0.081869]
[1728544682551,0.255167,61132.0,61131.0,0.095869]
[1728544682737,0.256167,61132.0,61131.0,0.095869]
[1728544684240,0.377167,61132.0,61131.0,0.081869]
[1728544684638,0.377167,61132.0,61131.0,0.092869]
[1728544685642,0.377167,61132.0,61131.0,0.453669]
[1728544685836,0.40106743,61132.0,61131.0,0.453669]
[1728544693752,0.40106743,61132.0,61131.0,0.092869]
[1728544693943,0.40106743,61132.0,61131.0,0.453669]
[1728544695443,0.40106743,61132.0,61131.0,0.17454192]
[1728544695646,0.40106743,61132.0,61131.0,0.53534192]
[1728544696451,0.40106743,61132.0,61131.0,0.62305466]
[1728544700145,0.40106743,61132.0,61131.0,0.26225466]
[1728544700345,0.40106743,61132.0,61131.0,0.62305466]
[1728544700540,0.40106743,61132.0,61131.0,0.54138174]
[1728544701446,0.40106743,61132.0,61131.0,0.62307659]
[1728544702144,0.40106743,61132.0,61131.0,0.011]
[1728544703351,0.40106743,61132.0,61131.0,0.013]
[1728544703551,0.40006743,61132.0,61131.0,0.002]
[1728544703858,0.40106743,61132.0,61131.0,0.013]
[1728544704354,0.40006743,61132.0,61131.0,0.002]
[1728544704554,0.40106743,61132.0,61131.0,0.013]
[1728544707552,0.40106743,61132.0,61131.0,0.18272199]
[1728544708455,0.40106743,61132.0,61131.0,0.18272791]
[1728544709455,0.40106743,61132.0,61131.0,0.10103306]
[1728544712557,0.40106743,61132.0,61131.0,0.18285496]
[1728544713351,0.40106743,61132.0,61131.0,0.10103306]
[1728544713563,0.40106743,61132.0,61131.0,0.18284831]
[1728544714252,0.40106743,61132.0,61131.0,0.013]
[1728544715168,0.40106743,61132.0,61127.0,0.08181525]
[1728544715169,0.081869,61131.0,61127.0,0.08181525]
[1728544715350,0.081869,61131.0,61126.0,0.08181525]
[1728544715351,0.081874,61127.0,61126.0,0.08181525]
[1728544715555,0.081874,61127.0,61125.0,0.08181525]
[1728544715556,0.081875,61126.0,61125.0,0.08181525]
[1728544715855,0.311875,61126.0,61125.0,0.08181525]
[1728544716558,0.081877,61125.0,61124.0,0.08181525]
[1728544716863,0.081877,61125.0,61124.0,0.17002472]
[1728544716864,0.301877,61125.0,61124.0,0.17002472]
[1728544717160,0.081878,61124.0,61123.0,0.08181525]
[1728544717466,0.311878,61124.0,61123.0,0.08181525]
[1728544718567,0.081879,61123.0,61122.0,0.08181525]
[1728544718758,0.081879,61123.0,61122.0,0.17002984]
[1728544718759,0.311879,61123.0,61122.0,0.17002984]
[1728544720264,0.312879,61123.0,61122.0,0.17002984]
[1728544720558,0.312879,61123.0,61122.0,0.08181525]
[1728544721560,0.312879,61123.0,61121.0,0.16369625]
[1728544722660,0.311879,61123.0,61121.0,0.16369625]
[1728544723962,0.191879,61123.0,61121.0,0.16369625]
[1728544724163,0.12,61122.0,61121.0,0.16369625]
[1728544724372,0.23,61122.0,61121.0,0.25185673]
[1728544726070,0.11,61122.0,61121.0,0.17004148]
[1728544726261,0.11,61122.0,61121.0,0.38786536]
[1728544726571,0.11,61122.0,61121.0,0.28994236]
[1728544726772,0.11,61122.0,61121.0,0.39474501]
[1728544727766,0.11,61122.0,61121.0,0.39447815]
[1728544730972,0.11,61122.0,61121.0,1.11607815]
[1728544735675,0.11,61122.0,61121.0,1.09047727]
[1728544736180,0.11,61122.0,61121.0,1.11607627]
[1728544737086,0.11,61122.0,61121.0,1.11631432]
[1728544738480,0.11,61122.0,61121.0,1.11631508]
[1728544738881,0.11,61122.0,61121.0,0.75551508]
[1728544739780,0.11,61122.0,61121.0,0.72411508]
[1728544740081,0.11,61122.0,61121.0,0.61919978]
[1728544740984,0.11,61122.0,61121.0,0.61930384]
[1728544741390,0.11,61122.0,61121.0,0.59370408]
[1728544741679,0.11,61122.0,61121.0,0.61930473]
[1728544745388,0.11,61122.0,61121.0,0.55640473]
[1728544747881,0.191881,61122.0,61121.0,0.55640473]
[1728544748486,0.191881,61122.0,61121.0,0.66148735]
[1728544748682,0.191881,61122.0,61121.0,0.57960635]
[1728544748985,0.191881,61122.0,61121.0,0.44892308]
[1728544749182,0.191881,61122.0,61121.0,0.54723234]
[1728544749491,0.191881,61122.0,61121.0,0.44903255]
[1728544749694,0.191881,61122.0,61121.0,0.08823255]
[1728544749880,0.191881,61122.0,61121.0,0.08861092]
[1728544750792,0.191881,61122.0,61121.0,0.17045046]
[1728544751782,0.191881,61122.0,61121.0,0.08183954]
[1728544752983,0.11,61122.0,61120.0,0.08183954]
[1728544753179,0.234282,61121.0,61120.0,0.08183954]
[1728544753384,0.334282,61121.0,61120.0,0.17054523]
[1728544755694,0.334282,61121.0,61120.0,0.08183954]
[1728544756094,0.2524,61121.0,61119.0,0.08183954]
[1728544756286,0.201884,61120.0,61119.0,0.08183954]
[1728544756487,0.301884,61120.0,61119.0,0.1705269]
[1728544756888,0.301884,61120.0,61119.0,0.08183954]
[1728544757083,0.301884,61120.0,61118.0,0.08183954]
[1728544757084,0.081885,61119.0,61118.0,0.08183954]
[1728544757286,0.081885,61119.0,61118.0,0.17055809]
[1728544757287,0.201885,61119.0,61118.0,0.17055809]
[1728544757686,0.201885,61119.0,61118.0,0.08183954]
[1728544758095,0.202885,61119.0,61118.0,0.08183954]
[1728544758497,0.202885,61119.0,61117.0,0.00245422]
[1728544758498,0.121,61119.0,61117.0,0.08429376]
[1728544758685,0.121,61119.0,61117.0,0.00245422]
[1728544758686,0.114786,61118.0,61117.0,0.00245422]
[1728544759002,0.234786,61118.0,61117.0,0.06789267]
[1728544759392,0.234786,61118.0,61117.0,0.00245422]
[1728544759592,0.234786,61118.0,61117.0,0.06787959]
[1728544759897,0.234786,61118.0,61117.0,0.00245422]
[1728544760198,0.1529,61118.0,61116.0,0.06542537]
[1728544760398,0.201888,61117.0,61116.0,0.06542537]
[1728544760594,0.201888,61117.0,61114.0,0.06542537]
[1728544760595,0.08189,61115.0,61114.0,0.06542537]
[1728544760793,0.31189,61115.0,61114.0,0.06542537]
[1728544761500,0.31189,61115.0,61113.0,0.06542537]
[1728544761501,0.081892,61114.0,61113.0,0.06542537]
[1728544761700,0.321892,61114.0,61113.0,0.06542537]
[1728544762198,0.24,61114.0,61112.0,0.06542537]
[1728544762506,0.201893,61113.0,61112.0,0.06542537]
[1728544762692,0.311893,61113.0,61112.0,0.06542537]
[1728544763698,0.23,61113.0,61111.0,0.06542537]
[1728544763904,0.232794,61112.0,61111.0,0.06542537]
[1728544764100,0.342794,61112.0,61111.0,0.06542537]
[1728544765093,0.343794,61112.0,61111.0,0.06542537]
[1728544765596,0.343794,61112.0,61110.0,0.081896]
[1728544765597,0.081896,61111.0,61110.0,0.081896]
[1728544765800,0.181896,61111.0,61110.0,0.081896]
[1728544766803,0.182896,61111.0,61110.0,0.081896]
[1728544768299,0.183896,61111.0,61110.0,0.081896]
[1728544776204,0.182896,61111.0,61110.0,0.081896]
[1728544776511,0.183896,61111.0,61110.0,0.081896]
[1728544779809,0.183896,61111.0,61110.0,0.16373554]
[1728544780009,0.183896,61111.0,61110.0,0.081896]
[1728544783113,0.303896,61111.0,61110.0,0.081896]
[1728544783517,0.303896,61111.0,61110.0,0.16373554]
[1728544784513,0.303896,61111.0,61110.0,0.2527041]
[1728544785006,0.303896,61111.0,61110.0,0.17086456]
[1728544788508,0.303896,61111.0,61110.0,0.26906435]
[1728544792507,0.303896,61111.0,61110.0,0.26915189]
[1728544794013,0.303896,61111.0,61110.0,0.1709521]
[1728544796806,0.183896,61111.0,61110.0,0.1709521]
[1728544797015,0.303896,61111.0,61110.0,0.1709521]
[1728544797312,0.303896,61111.0,61110.0,0.17098187]
[1728544805811,0.183896,61111.0,61110.0,0.17098187]
[1728544806212,0.303896,61111.0,61110.0,0.27718361]
[1728544808422,0.303896,61111.0,61110.0,0.26929423]
[1728544809616,0.303896,61111.0,61110.0,0.18020836]
[1728544810414,0.303896,61111.0,61110.0,0.26927959]
[1728544811415,0.303896,61111.0,61110.0,0.18020836]
[1728544814026,0.303896,61111.0,61110.0,0.081896]
[1728544816319,0.303896,61111.0,61110.0,0.17103788]
[1728544817429,0.303896,61111.0,61110.0,0.26934902]
[1728544819531,0.102,61111.0,61110.0,0.29103788]
[1728544820122,0.222,61111.0,61110.0,0.29103788]
[1728544821420,0.222,61111.0,61110.0,0.29094121]
[1728544822426,0.222,61111.0,61110.0,0.17094121]
[1728544825231,0.222,61111.0,61110.0,0.27706115]
[1728544825734,0.222,61111.0,61110.0,0.63786115]
[1728544829035,0.222,61111.0,61110.0,0.78346703]
[1728544830421,0.002,61111.0,61110.0,2.11198849]
[1728544830632,0.002,61111.0,61110.0,2.02165418]
[1728544830829,0.002,61111.0,61110.0,1.89874929]
[1728544831021,0.002,61111.0,61110.0,2.02155852]
[1728544831227,0.002,61111.0,61110.0,2.02141014]
[1728544832234,0.002,61111.0,61110.0,2.1359351]
[1728544833235,0.002,61111.0,61110.0,2.01327425]
[1728544833438,0.0114,61116.0,61115.0,0.08189]
[1728544833731,0.0114,61120.0,61119.0,0.081885]
[1728544833939,0.00245483,61125.0,61124.0,0.081878]
[1728544834136,0.10245483,61125.0,61124.0,0.53172321]
[1728544834845,0.10245483,61125.0,61124.0,0.61344785]
[1728544835134,0.10245483,61125.0,61124.0,0.442678]
[1728544835632,0.11245483,61125.0,61124.0,0.442678]
[1728544836235,0.12245483,61125.0,61124.0,0.442678]
[1728544837342,0.12245483,61125.0,61124.0,0.081878]
[1728544840440,0.12245483,61125.0,61124.0,0.201878]
[1728544843438,0.12245483,61125.0,61124.0,0.22747845]
[1728544843654,0.12245483,61125.0,61124.0,0.30920309]
[1728544844140,0.12245483,61125.0,61124.0,0.22747797]
[1728544845636,0.12245483,61125.0,61124.0,0.58827797]
[1728544847644,0.12245483,61125.0,61124.0,0.562678]
[1728544848038,0.12245483,61125.0,61124.0,0.58827797]
[1728544848238,0.12245483,61125.0,61124.0,0.67000261]
[1728544848440,0.12245483,61125.0,61124.0,0.58827797]
[1728544849142,0.12245483,61125.0,61124.0,0.67000261]
[1728544850038,0.12245483,61125.0,61124.0,0.52440264]
[1728544850240,0.12245483,61125.0,61124.0,0.442678]
[1728544852142,0.12245483,61125.0,61124.0,0.52440264]
[1728544852643,0.12245483,61125.0,61124.0,0.442678]
[1728544854144,0.12245483,61125.0,61124.0,0.61271663]
[1728544854853,0.12245483,61125.0,61124.0,0.25191663]
[1728544855346,0.12245483,61125.0,61124.0,0.61273218]
[1728544856146,0.12245483,61125.0,61124.0,0.53100754]
[1728544856349,0.12245483,61125.0,61124.0,0.17020754]
[1728544856649,0.12245483,61125.0,61124.0,0.53100754]
[1728544856952,0.12245483,61125.0,61124.0,0.17020754]
[1728544857353,0.12245483,61125.0,61124.0,0.53100754]
[1728544858257,0.12245483,61125.0,61124.0,0.17020754]
[1728544858854,0.12245483,61125.0,61124.0,0.53100754]
[1728544859443,0.12245483,61125.0,61124.0,0.17020754]
[1728544859854,0.12245483,61125.0,61124.0,0.53100754]
[1728544860351,0.12245483,61125.0,61124.0,0.62906367]
[1728544860550,0.12,61125.0,61124.0,0.62906367]
[1728544860748,0.12,61125.0,61124.0,0.53100754]
[1728544861146,0.12,61125.0,61124.0,0.63649971]
[1728544861756,0.12,61125.0,61124.0,0.66209967]
[1728544863450,0.12,61125.0,61124.0,0.66231617]
[1728544863652,0.12,61125.0,61124.0,0.63671621]
[1728544865359,0.12,61125.0,61124.0,0.27591621]
[1728544865560,0.12,61125.0,61124.0,0.63671621]
[1728544865951,0.12,61125.0,61124.0,0.27591621]
[1728544866160,0.12,61125.0,61124.0,0.63671621]
[1728544866559,0.12,61125.0,61124.0,0.27591621]
[1728544866759,0.12,61125.0,61124.0,0.63671621]
[1728544867349,0.12,61125.0,61124.0,0.27591621]
[1728544867545,0.12,61125.0,61124.0,0.63671621]
[1728544868059,0.12,61125.0,61124.0,0.27591621]
[1728544868263,0.12,61125.0,61124.0,0.27653908]
[1728544868650,0.12,61125.0,61124.0,0.63733908]
[1728544869054,0.12,61125.0,61124.0,0.17068479]
[1728544869559,0.12,61125.0,61124.0,0.53148479]
[1728544870349,0.12,61125.0,61124.0,0.65148479]
[1728544872856,0.12,61125.0,61124.0,0.67708475]
[1728544873056,0.12,61125.0,61124.0,0.67705662]
[1728544873462,0.12,61125.0,61124.0,0.65145666]
[1728544873855,0.12,61125.0,61124.0,0.31625662]
[1728544874048,0.12,61125.0,61124.0,0.67705662]
[1728544874864,0.12,61125.0,61124.0,0.78287452]
[1728544875260,0.12,61125.0,61124.0,0.78287274]
[1728544877263,0.12,61125.0,61124.0,0.75727278]
[1728544877465,0.12,61125.0,61124.0,0.78287274]
[1728544877759,0.12,61125.0,61124.0,0.69409561]
[1728544877961,0.12,61125.0,61124.0,0.78287166]
[1728544882663,0.12,61125.0,61124.0,0.78285795]
[1728544884357,0.12,61125.0,61124.0,0.75725799]
[1728544884757,0.12,61125.0,61124.0,0.63725799]
[1728544887765,0.12,61125.0,61124.0,0.27645799]
[1728544888162,0.12,61125.0,61124.0,0.63725799]
[1728544888772,0.12,61125.0,61124.0,0.53144779]
[1728544889572,0.12,61125.0,61124.0,0.17064779]
[1728544889774,0.12,61125.0,61124.0,0.53144779]
[1728544890164,0.12,61125.0,61124.0,0.17064779]
[1728544890473,0.12,61125.0,61124.0,0.53144779]
[1728544890672,0.12,61125.0,61124.0,0.17064779]
[1728544890857,0.12,61125.0,61124.0,0.53144779]
[1728544892172,0.12,61125.0,61124.0,0.17064518]
[1728544892471,0.12,61125.0,61124.0,0.53144518]
[1728544892675,0.12,61125.0,61124.0,0.17064518]
[1728544893465,0.12,61125.0,61124.0,0.53144518]
[1728544894066,0.12,61125.0,61124.0,0.17064518]
[1728544894260,0.12,61125.0,61124.0,0.27645137]
[1728544894475,0.12,61125.0,61124.0,0.63725137]
[1728544895175,0.12,61125.0,61124.0,0.27645137]
[1728544895572,0.12,61125.0,61124.0,0.63725137]
[1728544896270,0.12,61125.0,61124.0,0.27645137]
[1728544896475,0.12,61125.0,61124.0,0.63725137]
[1728544899475,0.12,61125.0,61124.0,0.30205134]
[1728544899679,0.12,61125.0,61124.0,0.66285134]
[1728544901271,0.12,61125.0,61124.0,0.70381129]
[1728544901681,0.12,61125.0,61124.0,0.70385167]
[1728544902769,0.12,61125.0,61124.0,0.6782517]
[1728544902974,0.12,61125.0,61124.0,0.34305166]
[1728544903374,0.12,61125.0,61124.0,0.70385166]
[1728544906375,0.12,61125.0,61124.0,0.66289171]
[1728544906572,0.12,61125.0,61124.0,0.6628741]
[1728544906774,0.12,61125.0,61124.0,0.82383404]
[1728544907379,0.12,61125.0,61124.0,0.7828741]
[1728544910279,0.12,61125.0,61124.0,0.4220741]
[1728544910480,0.12,61125.0,61124.0,0.7828741]
[1728544913581,0.11,61125.0,61124.0,0.7828741]
[1728544913777,0.114,61125.0,61124.0,0.78287275]
[1728544914689,0.104,61125.0,61124.0,0.78287275]
[1728544914891,0.108,61125.0,61124.0,0.78287275]
[1728544916996,0.108,61125.0,61124.0,0.75727414]
[1728544917293,0.108,61125.0,61124.0,0.78287275]
[1728544918284,0.108,61125.0,61124.0,0.66287275]
[1728544918485,0.108,61125.0,61124.0,0.78287275]
[1728544920497,0.108,61125.0,61124.0,0.75727414]
[1728544920683,0.108,61125.0,61124.0,0.78244634]
[1728544923491,0.189877,61125.0,61124.0,0.66244634]
[1728544923692,0.189877,61125.0,61124.0,0.63684773]
[1728544923997,0.189877,61125.0,61124.0,0.53126063]
[1728544924495,0.189877,61125.0,61124.0,0.44938263]
[1728544927201,0.189877,61125.0,61124.0,0.54758041]
[1728544927698,0.189877,61125.0,61124.0,0.18678041]
[1728544928892,0.189877,61125.0,61124.0,0.18696038]
[1728544929798,0.108,61125.0,61124.0,0.26883838]
[1728544930698,0.189877,61125.0,61124.0,0.26883838]
[1728544931399,0.189877,61125.0,61124.0,0.26882589]
[1728544932190,0.189877,61125.0,61124.0,0.1706406]
[1728544933688,0.189877,61125.0,61124.0,0.081878]
[1728544933901,0.189877,61125.0,61124.0,0.17063123]
[1728544934803,0.189877,61125.0,61124.0,0.19623189]
[1728544936499,0.189877,61125.0,61124.0,0.19623082]
[1728544936806,0.189877,61125.0,61124.0,0.55703082]
[1728544937197,0.189877,61125.0,61124.0,0.66267057]
[1728544938409,0.189877,61125.0,61124.0,0.30187057]
[1728544938704,0.189877,61125.0,61124.0,0.66254576]
[1728544940505,0.189877,61125.0,61124.0,0.30174576]
[1728544940708,0.189877,61125.0,61124.0,0.66254576]
[1728544940899,0.189877,61125.0,61124.0,0.30174576]
[1728544941101,0.189877,61125.0,61124.0,0.66254576]
[1728544942510,0.189877,61125.0,61124.0,0.30174576]
[1728544942698,0.189877,61125.0,61124.0,0.66254576]
[1728544943303,0.189877,61125.0,61124.0,0.63694617]
[1728544943600,0.189877,61125.0,61124.0,0.66254576]
[1728544944007,0.189877,61125.0,61124.0,0.30174576]
[1728544944201,0.189877,61125.0,61124.0,0.66254576]
[1728544944511,0.189877,61125.0,61124.0,0.30174576]
[1728544945010,0.189877,61125.0,61124.0,0.66254576]
[1728544946008,0.189877,61125.0,61124.0,0.30174576]
[1728544946408,0.189877,61125.0,61124.0,0.66254576]
[1728544946807,0.189877,61125.0,61124.0,0.78254576]
[1728544948207,0.189877,61125.0,61124.0,0.78255462]